[Event "Gibraltar Masters 18th"]
[Site "Gibraltar"]
[Date "2020.01.29"]
[Round "9.54"]
[White "Gschnitzer, Adrian"]
[Black "Tabatabaei, M.Amin"]
[Result "0-1"]
[ECO "B69"]
[WhiteElo "2388"]
[BlackElo "2638"]
[PlyCount "108"]
[EventDate "2020.01.21"]
[EventType "swiss"]
[EventRounds "10"]
[EventCountry "GGB"]
[SourceTitle "BritBase"]
[Source "John Saunders"]
[SourceDate "2021.06.05"]
[SourceVersion "1"]
[SourceVersionDate "2021.06.05"]
[SourceQuality "1"]
[TimeControl "40/100:0"]
[WhiteClock "0:18:44"]
[BlackClock "0:42:53"]

1. e4 {[%emt 0:00:00]} c5 {[%emt 0:00:00]} 2. Nf3 {[%emt 0:00:00]} d6 {[%emt 0:
00:00]} 3. d4 {[%emt 0:00:00]} cxd4 {[%emt 0:00:00]} 4. Nxd4 {[%emt 0:00:00]}
Nf6 {[%emt 0:00:00]} 5. Nc3 {[%emt 0:00:00]} Nc6 {[%emt 0:00:00]} 6. Bg5 {
[%emt 0:00:00]} e6 {[%emt 0:00:00]} 7. Qd2 {[%emt 0:00:00]} a6 {[%emt 0:00:00]}
8. O-O-O {[%emt 0:00:00]} Bd7 {[%emt 0:00:00]} 9. f4 {[%emt 0:00:00]} Be7 {
[%emt 0:00:00]} 10. Nf3 {[%emt 0:00:00]} b5 {[%emt 0:00:00]} 11. Bxf6 {[%emt 0:
00:00]} gxf6 {[%emt 0:00:00]} 12. Kb1 {[%emt 0:00:00]} b4 {[%emt 0:00:00]} 13.
Ne2 {[%emt 0:00:00]} h5 {[%emt 0:00:00]} 14. g3 {[%emt 0:00:00]} Qb6 {[%emt 0:
00:00]} 15. Bh3 {[%emt 0:00:00]} a5 {[%emt 0:00:00]} 16. Ned4 {[%emt 0:00:00]}
a4 {[%emt 0:00:00]} 17. Nxc6 {[%emt 0:00:00]} Bxc6 {[%emt 0:00:00]} 18. Rhe1 {
[%emt 0:00:00]} f5 {[%emt 0:00:00]} 19. Ng5 {[%emt 0:00:00]} Bxg5 {[%emt 0:00:
00]} 20. fxg5 {[%emt 0:00:00]} Bxe4 {[%emt 0:00:00]} 21. Bg2 {[%emt 0:00:00]}
d5 {[%emt 0:00:00]} 22. Bxe4 {[%emt 0:00:00]} fxe4 {[%emt 0:00:00]} 23. Rxe4 {
[%emt 0:00:00]} dxe4 {[%emt 0:00:00]} 24. Qd7+ {[%emt 0:00:00]} Kf8 {[%emt 0:
00:00]} 25. Rf1 {[%emt 0:00:00]} f5 {[%emt 0:00:00]} 26. g6 {[%emt 0:00:00]}
Ra7 {[%emt 0:00:00]} 27. g7+ {[%emt 0:00:00]} Kg8 {[%emt 0:00:00]} 28. gxh8=R+
{[%emt 0:00:00]} Kxh8 {[%emt 0:00:00]} 29. Qe8+ {[%emt 0:00:00]} Kg7 {[%emt 0:
00:00]} 30. Qxh5 {[%emt 0:00:00]} Qe3 {[%emt 0:00:00]} 31. Rd1 {[%emt 0:00:00]}
Rf7 {[%emt 0:00:00]} 32. Rd8 {[%emt 0:00:00]} Rf8 {[%emt 0:00:00]} 33. Rd7+ {
[%emt 0:00:00]} Kf6 {[%emt 0:00:00]} 34. Qh4+ {[%emt 0:00:00]} Ke5 {[%emt 0:00:
00]} 35. Rd1 {[%emt 0:00:00]} b3 {[%emt 0:00:00]} 36. cxb3 {[%emt 0:00:00]} Qf3
{[%emt 0:00:00]} 37. Rc1 {[%emt 0:00:00]} Qd3+ {[%emt 0:00:00]} 38. Ka1 {
[%emt 0:00:00]} Qd2 {[%emt 0:00:00]} 39. Kb1 {[%emt 0:00:00]} axb3 {[%emt 0:00:
00]} 40. a3 {[%emt 0:30:19]} Ra8 {[%emt 0:00:00]} 41. Rc3 {[%emt 0:00:00]} Qd1+
{[%emt 0:00:00]} 42. Rc1 {[%emt 0:00:00]} Qd3+ {[%emt 0:00:00]} 43. Ka1 {
[%emt 0:00:00]} Qd2 {[%emt 0:00:00]} 44. Kb1 {[%emt 0:00:00]} Rf8 {[%emt 0:00:
00]} 45. Rc3 {[%emt 0:00:00]} Qd1+ {[%emt 0:00:00]} 46. Rc1 {[%emt 0:00:09]}
Qd3+ {[%emt 0:00:00]} 47. Ka1 {[%emt 0:00:00]} Qd2 {[%emt 0:00:00]} 48. Kb1 {
[%emt 0:00:00]} Kd6 {[%emt 0:00:00]} 49. Rc3 {[%emt 0:00:00]} Qd1+ {[%emt 0:00:
00]} 50. Rc1 {[%emt 0:00:00]} Qd3+ {[%emt 0:00:00]} 51. Ka1 {[%emt 0:00:00]}
Rc8 {[%emt 0:00:00]} 52. Qf4+ {[%emt 0:00:00]} Kd7 {[%emt 0:00:00]} 53. Rg1 {
[%emt 0:00:00]} Qd4 {[%emt 0:00:00]} 54. Qf1 {[%emt 0:00:00]} Ke7 {[%emt 0:00:
00]} 0-1

[Event "Gibraltar Masters 18th"]
[Site "Gibraltar"]
[Date "2020.01.29"]
[Round "9.55"]
[White "Kaidanov, Gregory"]
[Black "Soumya, Swaminathan"]
[Result "1-0"]
[ECO "A35"]
[WhiteElo "2546"]
[BlackElo "2384"]
[PlyCount "105"]
[EventDate "2020.01.21"]
[EventType "swiss"]
[EventRounds "10"]
[EventCountry "GGB"]
[SourceTitle "BritBase"]
[Source "John Saunders"]
[SourceDate "2021.06.05"]
[SourceVersion "1"]
[SourceVersionDate "2021.06.05"]
[SourceQuality "1"]
[TimeControl "40/100:0"]
[WhiteClock "0:06:00"]
[BlackClock "0:00:34"]

1. Nf3 {[%emt 0:00:00]} c5 {[%emt 0:00:00]} 2. c4 {[%emt 0:00:00]} Nc6 {
[%emt 0:00:00]} 3. Nc3 {[%emt 0:00:00]} g6 {[%emt 0:00:00]} 4. e3 {[%emt 0:00:
00]} Nf6 {[%emt 0:00:00]} 5. d4 {[%emt 0:00:00]} cxd4 {[%emt 0:00:00]} 6. exd4
{[%emt 0:00:00]} d5 {[%emt 0:00:00]} 7. cxd5 {[%emt 0:00:00]} Nxd5 {[%emt 0:00:
00]} 8. Qb3 {[%emt 0:00:00]} e6 {[%emt 0:00:00]} 9. Bb5 {[%emt 0:00:00]} Bg7 {
[%emt 0:00:00]} 10. O-O {[%emt 0:00:00]} O-O {[%emt 0:00:00]} 11. Bxc6 {
[%emt 0:00:00]} bxc6 {[%emt 0:00:00]} 12. Na4 {[%emt 0:00:00]} Qd6 {[%emt 0:00:
00]} 13. Re1 {[%emt 0:00:00]} Rb8 {[%emt 0:00:00]} 14. Qc2 {[%emt 0:00:00]} Nb4
{[%emt 0:00:00]} 15. Qd1 {[%emt 0:00:00]} e5 {[%emt 0:00:00]} 16. a3 {[%emt 0:
00:00]} e4 {[%emt 0:00:00]} 17. Rxe4 {[%emt 0:00:00]} Nd5 {[%emt 0:00:00]} 18.
Bg5 {[%emt 0:00:00]} f5 {[%emt 0:00:00]} 19. Re1 {[%emt 0:00:00]} f4 {[%emt 0:
00:00]} 20. Qe2 {[%emt 0:00:00]} Rb7 {[%emt 0:00:00]} 21. Nc5 {[%emt 0:00:00]}
Rbf7 {[%emt 0:00:00]} 22. Ne5 {[%emt 0:00:00]} h6 {[%emt 0:00:00]} 23. Nxf7 {
[%emt 0:00:00]} Kxf7 {[%emt 0:00:00]} 24. Ne4 {[%emt 0:00:00]} Qd7 {[%emt 0:00:
00]} 25. Bh4 {[%emt 0:00:00]} g5 {[%emt 0:00:00]} 26. Bxg5 {[%emt 0:00:00]}
hxg5 {[%emt 0:00:00]} 27. Nxg5+ {[%emt 0:00:00]} Kg8 {[%emt 0:00:00]} 28. Qe4 {
[%emt 0:00:00]} Qf5 {[%emt 0:00:00]} 29. Qxf5 {[%emt 0:00:00]} Bxf5 {[%emt 0:
00:00]} 30. Nf3 {[%emt 0:00:00]} Rb8 {[%emt 0:00:00]} 31. b4 {[%emt 0:00:00]}
Bd7 {[%emt 0:00:00]} 32. Ne5 {[%emt 0:00:00]} Bxe5 {[%emt 0:00:00]} 33. Rxe5 {
[%emt 0:00:00]} Kf7 {[%emt 0:00:00]} 34. h4 {[%emt 0:00:00]} a6 {[%emt 0:00:00]
} 35. g3 {[%emt 0:00:00]} Kf6 {[%emt 0:00:00]} 36. Kg2 {[%emt 0:00:00]} Rh8 {
[%emt 0:00:00]} 37. Rae1 {[%emt 0:00:00]} Rh7 {[%emt 0:00:00]} 38. Rg5 {
[%emt 0:00:00]} Rh8 {[%emt 0:00:00]} 39. Ree5 {[%emt 0:00:00]} Ne7 {[%emt 0:00:
00]} 40. Kf3 {[%emt 0:00:25]} fxg3 {[%emt 0:00:17]} 41. fxg3 {[%emt 0:01:20]}
Be6 {[%emt 0:00:00]} 42. Ke4 {[%emt 0:00:00]} Rd8 {[%emt 0:00:00]} 43. g4 {
[%emt 0:00:00]} Ba2 {[%emt 0:00:00]} 44. Ke3 {[%emt 0:00:00]} Bb1 {[%emt 0:00:
00]} 45. Rc5 {[%emt 0:00:00]} Rd6 {[%emt 0:02:31]} 46. Rc1 {[%emt 0:00:00]} Ba2
{[%emt 0:00:00]} 47. Rf1+ {[%emt 0:00:00]} Ke6 {[%emt 0:00:00]} 48. h5 {
[%emt 0:00:00]} Nd5+ {[%emt 0:00:00]} 49. Kd2 {[%emt 0:00:00]} Nf6 {[%emt 0:00:
00]} 50. Rg6 {[%emt 0:00:00]} Ke7 {[%emt 0:00:00]} 51. Rg7+ {[%emt 0:00:00]}
Kd8 {[%emt 0:00:00]} 52. h6 {[%emt 0:00:00]} Ne8 {[%emt 0:00:00]} 53. h7 {
[%emt 0:00:00]} 1-0

[Event "Gibraltar Masters 18th"]
[Site "Gibraltar"]
[Date "2020.01.29"]
[Round "9.56"]
[White "Hedman, Erik"]
[Black "Moroni, Luca Jr"]
[Result "1/2-1/2"]
[ECO "E11"]
[WhiteElo "2376"]
[BlackElo "2532"]
[PlyCount "103"]
[EventDate "2020.01.21"]
[EventType "swiss"]
[EventRounds "10"]
[EventCountry "GGB"]
[SourceTitle "BritBase"]
[Source "John Saunders"]
[SourceDate "2021.06.05"]
[SourceVersion "1"]
[SourceVersionDate "2021.06.05"]
[SourceQuality "1"]
[TimeControl "40/100:0"]
[WhiteClock "0:09:52"]
[BlackClock "0:17:08"]

1. d4 {[%emt 0:00:00]} Nf6 {[%emt 0:00:00]} 2. c4 {[%emt 0:00:00]} e6 {[%emt 0:
00:00]} 3. Nf3 {[%emt 0:00:00]} Bb4+ {[%emt 0:00:00]} 4. Nbd2 {[%emt 0:00:00]}
O-O {[%emt 0:00:00]} 5. a3 {[%emt 0:00:00]} Be7 {[%emt 0:00:00]} 6. e3 {
[%emt 0:00:00]} b6 {[%emt 0:00:00]} 7. Bd3 {[%emt 0:00:00]} Bb7 {[%emt 0:00:00]
} 8. O-O {[%emt 0:00:00]} c5 {[%emt 0:00:00]} 9. b3 {[%emt 0:00:00]} cxd4 {
[%emt 0:00:00]} 10. exd4 {[%emt 0:00:00]} d5 {[%emt 0:00:00]} 11. Bb2 {[%emt 0:
00:00]} Nbd7 {[%emt 0:00:00]} 12. Qe2 {[%emt 0:00:00]} a5 {[%emt 0:00:00]} 13.
Ne5 {[%emt 0:00:00]} a4 {[%emt 0:00:00]} 14. b4 {[%emt 0:00:00]} dxc4 {[%emt 0:
00:00]} 15. Ndxc4 {[%emt 0:00:00]} Nd5 {[%emt 0:00:00]} 16. f4 {[%emt 0:00:00]}
g6 {[%emt 0:00:00]} 17. Rae1 {[%emt 0:00:00]} N7f6 {[%emt 0:00:00]} 18. Qd2 {
[%emt 0:00:00]} Rc8 {[%emt 0:00:00]} 19. Rf3 {[%emt 0:00:00]} Nh5 {[%emt 0:00:
00]} 20. Ref1 {[%emt 0:00:00]} f5 {[%emt 0:00:00]} 21. Qd1 {[%emt 0:00:00]} Qe8
{[%emt 0:00:00]} 22. Bc2 {[%emt 0:00:00]} b5 {[%emt 0:00:00]} 23. Na5 {[%emt 0:
00:00]} Ba8 {[%emt 0:00:00]} 24. Bd3 {[%emt 0:00:00]} Nxb4 {[%emt 0:00:00]} 25.
axb4 {[%emt 0:00:00]} Bxb4 {[%emt 0:00:00]} 26. Nb3 {[%emt 0:00:00]} axb3 {
[%emt 0:00:00]} 27. Qxb3 {[%emt 0:00:00]} Qe7 {[%emt 0:00:00]} 28. Bxb5 {
[%emt 0:00:00]} Nf6 {[%emt 0:00:00]} 29. Bc4 {[%emt 0:00:00]} Nd5 {[%emt 0:00:
00]} 30. Ra1 {[%emt 0:00:00]} Rb8 {[%emt 0:00:00]} 31. Rxa8 {[%emt 0:00:00]}
Rxa8 {[%emt 0:00:00]} 32. Nc6 {[%emt 0:00:00]} Qd6 {[%emt 0:00:00]} 33. Bxd5 {
[%emt 0:00:00]} exd5 {[%emt 0:00:00]} 34. Nxb4 {[%emt 0:00:00]} Rfb8 {[%emt 0:
00:00]} 35. Bc3 {[%emt 0:00:00]} Rb5 {[%emt 0:00:00]} 36. Re3 {[%emt 0:00:00]}
Qxf4 {[%emt 0:00:00]} 37. Re5 {[%emt 0:00:00]} Rc8 {[%emt 0:00:00]} 38. Qb2 {
[%emt 0:00:00]} Rc4 {[%emt 0:00:00]} 39. Re1 {[%emt 0:00:46]} Qc7 {[%emt 0:00:
00]} 40. Bd2 {[%emt 0:00:16]} Qb6 {[%emt 0:00:00]} 41. Rb1 {[%emt 0:01:25]}
Rxd4 {[%emt 0:00:00]} 42. Kh1 {[%emt 0:00:00]} Qc5 {[%emt 0:00:00]} 43. h3 {
[%emt 0:00:00]} f4 {[%emt 0:00:00]} 44. Be1 {[%emt 0:00:00]} Rb8 {[%emt 0:00:
00]} 45. Qf2 {[%emt 0:00:00]} Qc4 {[%emt 0:00:00]} 46. Nc6 {[%emt 0:00:00]} Rb7
{[%emt 0:01:28]} 47. Rb4 Rxb4 {[%emt 0:00:00]} 48. Nxd4 {[%emt 0:00:00]} Rb1 {
[%emt 0:00:00]} 49. Nf3 {[%emt 0:00:00]} Qc3 {[%emt 0:00:00]} 50. Qh4 {[%emt 0:
00:00]} Qe3 {[%emt 0:00:00]} 51. Kh2 {[%emt 0:00:00]} Kg7 {[%emt 0:00:00]} 52.
Bc3+ {[%emt 0:00:00] Rb2 Qe7+} 1/2-1/2

[Event "Gibraltar Masters 18th"]
[Site "Gibraltar"]
[Date "2020.01.29"]
[Round "9.57"]
[White "Libiszewski, Fabien"]
[Black "Mullick, Raahil"]
[Result "1/2-1/2"]
[ECO "B52"]
[WhiteElo "2522"]
[BlackElo "2382"]
[PlyCount "98"]
[EventDate "2020.01.21"]
[EventType "swiss"]
[EventRounds "10"]
[EventCountry "GGB"]
[SourceTitle "BritBase"]
[Source "John Saunders"]
[SourceDate "2021.06.05"]
[SourceVersion "1"]
[SourceVersionDate "2021.06.05"]
[SourceQuality "1"]
[TimeControl "40/100:0"]

1. e4 {[%emt 4:44:28]} c5 {[%emt 0:00:09]} 2. Nf3 {[%emt 0:00:10]} d6 {[%emt 0:
00:05]} 3. Bb5+ {[%emt 0:00:13]} Bd7 {[%emt 0:00:07]} 4. Bxd7+ {[%emt 0:00:26]}
Qxd7 {[%emt 0:00:11]} 5. c4 {[%emt 0:01:02]} Nf6 {[%emt 0:00:07]} 6. Nc3 {
[%emt 0:00:50]} g6 {[%emt 0:00:07]} 7. d4 {[%emt 0:00:28]} cxd4 {[%emt 0:00:04]
} 8. Nxd4 {[%emt 0:00:05]} Bg7 {[%emt 0:00:04]} 9. f3 {[%emt 0:00:31]} O-O {
[%emt 0:00:12]} 10. Be3 {[%emt 0:00:21]} Nc6 {[%emt 0:03:00]} 11. O-O {[%emt 0:
00:19]} e6 {[%emt 0:00:49]} 12. Rc1 {[%emt 0:15:43]} d5 {[%emt 0:04:33]} 13.
Nxc6 {[%emt 0:10:51]} bxc6 {[%emt 0:00:12]} 14. e5 {[%emt 0:01:25]} Ne8 {
[%emt 0:01:47]} 15. cxd5 {[%emt 0:05:18]} cxd5 {[%emt 0:00:52]} 16. f4 {
[%emt 0:13:14]} Nc7 {[%emt 0:03:39]} 17. Qa4 {[%emt 0:02:45]} Rfd8 {[%emt 0:13:
39]} 18. Qxd7 {[%emt 0:03:49]} Rxd7 {[%emt 0:00:04]} 19. Ne2 {[%emt 0:00:09]}
Bf8 {[%emt 0:08:43]} 20. Nd4 {[%emt 0:13:07]} Na6 {[%emt 0:03:04]} 21. a3 {
[%emt 0:00:57]} Nc5 {[%emt 0:01:51]} 22. b4 {[%emt 0:00:15]} Na4 {[%emt 0:06:
19]} 23. Nb3 {[%emt 0:09:16]} Nb2 {[%emt 0:08:38]} 24. Na5 {[%emt 0:00:52]} d4
{[%emt 0:05:53]} 25. Bd2 {[%emt 0:01:46]} d3 {[%emt 0:09:40]} 26. Kf2 {[%emt 0:
07:36]} Rd5 {[%emt 0:03:19]} 27. Rc7 {[%emt 0:01:08]} Bh6 {[%emt 0:10:32]} 28.
Rfc1 {[%emt 0:04:58]} Bxf4 {[%emt 0:01:06]} 29. Rc8+ {[%emt 0:01:04]} Rxc8 {
[%emt 0:00:35]} 30. Rxc8+ {[%emt 0:00:06]} Kg7 {[%emt 0:00:05]} 31. Bxf4 {
[%emt 0:00:28]} d2 {[%emt 0:00:26]} 32. Bxd2 {[%emt 0:00:27]} Rxd2+ {[%emt 0:
00:05]} 33. Kf1 {[%emt 0:02:58]} Rd3 {[%emt 0:13:47]} 34. Rc2 {[%emt 0:03:11]}
Na4 {[%emt 0:00:15]} 35. Nc4 {[%emt 0:00:54]} Nb6 {[%emt 0:10:57]} 36. Nd6 {
[%emt 0:02:51]} Nd7 {[%emt 0:01:24]} 37. Nc4 {[%emt 0:01:30]} Rd4 {[%emt 0:01:
17]} 38. b5 {[%emt 0:01:58]} Rf4+ {[%emt 0:01:13]} 39. Kg1 {[%emt 0:00:52]} Re4
{[%emt 0:00:28]} 40. a4 {[%emt 0:00:03]} Nb6 {[%emt 0:00:28]} 41. Nd6 {[%emt 0:
03:00]} Re1+ {[%emt 0:11:16]} 42. Kf2 {[%emt 0:00:15]} Rxe5 {[%emt 0:00:05]}
43. a5 {[%emt 0:01:19]} Nd5 {[%emt 0:05:50]} 44. Rb2 {[%emt 0:11:50]} Nc3 {
[%emt 0:10:29]} 45. Rb3 {[%emt 0:08:18]} Rd5 {[%emt 0:03:24]} 46. b6 {[%emt 0:
06:54]} axb6 {[%emt 0:00:28]} 47. axb6 {[%emt 0:01:12]} Rxd6 {[%emt 0:00:14]}
48. b7 {[%emt 0:00:10]} Rd8 {[%emt 0:00:28]} 49. b8=Q {[%emt 0:00:13]} Rxb8 {
[%emt 0:00:59]} 1/2-1/2

[Event "Gibraltar Masters 18th"]
[Site "Gibraltar"]
[Date "2020.01.30"]
[Round "10.1"]
[White "Esipenko, Andrey"]
[Black "Wang, Hao"]
[Result "1/2-1/2"]
[ECO "D30"]
[WhiteElo "2654"]
[BlackElo "2758"]
[PlyCount "60"]
[EventDate "2020.01.21"]
[EventType "swiss"]
[EventRounds "10"]
[EventCountry "GGB"]
[SourceTitle "BritBase"]
[Source "John Saunders"]
[SourceDate "2021.06.05"]
[SourceVersion "1"]
[SourceVersionDate "2021.06.05"]
[SourceQuality "1"]
[TimeControl "40/100:0"]
[WhiteClock "0:28:47"]
[BlackClock "1:08:45"]

1. d4 {[%emt 0:00:00]} Nf6 {[%emt 0:00:00]} 2. c4 {[%emt 0:00:00]} e6 {[%emt 0:
00:00]} 3. Nf3 {[%emt 0:00:00]} d5 {[%emt 0:00:00]} 4. g3 {[%emt 0:00:00]} Be7
{[%emt 0:00:00]} 5. Bg2 {[%emt 0:00:00]} O-O {[%emt 0:00:00]} 6. O-O {[%emt 0:
00:00]} dxc4 {[%emt 0:00:00]} 7. Qc2 {[%emt 0:00:00]} c6 {[%emt 0:00:00]} 8.
Qxc4 {[%emt 0:00:00]} b5 {[%emt 0:00:00]} 9. Qc2 {[%emt 0:00:00]} Bb7 {[%emt 0:
00:00]} 10. Bg5 {[%emt 0:00:00]} Nbd7 {[%emt 0:00:00]} 11. Bxf6 {[%emt 0:00:00]
} Bxf6 {[%emt 0:00:00]} 12. Nbd2 {[%emt 0:00:00]} c5 {[%emt 0:00:00]} 13. dxc5
{[%emt 0:00:00]} Rc8 {[%emt 0:00:00]} 14. Nb3 {[%emt 0:00:00]} Bd5 {[%emt 0:00:
00]} 15. Ne1 {[%emt 0:00:00]} Bxb3 {[%emt 0:00:00]} 16. Qxb3 {[%emt 0:00:00]}
Nxc5 {[%emt 0:00:00]} 17. Qxb5 {[%emt 0:00:00]} Qb6 {[%emt 0:00:00]} 18. Qxb6 {
[%emt 0:00:00]} axb6 {[%emt 0:00:00]} 19. Rc1 {[%emt 0:00:00]} Bxb2 {[%emt 0:
00:00]} 20. Rb1 {[%emt 0:00:00]} Na4 {[%emt 0:00:00]} 21. Nd3 {[%emt 0:00:00]}
Bf6 {[%emt 0:00:00]} 22. Rb4 {[%emt 0:00:00]} Nc3 {[%emt 0:00:00]} 23. Bf3 {
[%emt 0:00:00]} b5 {[%emt 0:00:00]} 24. Rc1 {[%emt 0:00:00]} Nxa2 {[%emt 0:00:
00]} 25. Rxc8 {[%emt 0:00:00]} Rxc8 {[%emt 0:00:00]} 26. Rxb5 {[%emt 0:00:00]}
g6 {[%emt 0:00:00]} 27. Rc5 {[%emt 0:00:00]} Rxc5 {[%emt 0:00:00]} 28. Nxc5 {
[%emt 0:00:00]} Nc3 {[%emt 0:00:00]} 29. e3 {[%emt 0:00:00]} Kg7 {[%emt 0:00:
00]} 30. Kg2 {[%emt 0:00:00]} h5 {[%emt 0:00:00]} 1/2-1/2

[Event "Gibraltar Masters 18th"]
[Site "Gibraltar"]
[Date "2020.01.30"]
[Round "10.2"]
[White "Paravyan, David"]
[Black "Yilmaz, Mustafa"]
[Result "1/2-1/2"]
[ECO "B90"]
[WhiteElo "2629"]
[BlackElo "2607"]
[PlyCount "65"]
[EventDate "2020.01.21"]
[EventType "swiss"]
[EventRounds "10"]
[EventCountry "GGB"]
[SourceTitle "BritBase"]
[Source "John Saunders"]
[SourceDate "2021.06.05"]
[SourceVersion "1"]
[SourceVersionDate "2021.06.05"]
[SourceQuality "1"]
[TimeControl "40/100:0"]
[WhiteClock "0:00:56"]
[BlackClock "0:11:32"]

1. e4 {[%emt 0:00:00]} c5 {[%emt 0:00:00]} 2. Nf3 {[%emt 0:00:00]} d6 {[%emt 0:
00:00]} 3. d4 {[%emt 0:00:00]} cxd4 {[%emt 0:00:00]} 4. Nxd4 {[%emt 0:00:00]}
Nf6 {[%emt 0:00:00]} 5. Nc3 {[%emt 0:00:00]} a6 {[%emt 0:00:00]} 6. Bd3 {
[%emt 0:00:00]} e5 {[%emt 0:00:00]} 7. Nde2 {[%emt 0:00:00]} Be7 {[%emt 0:00:
00]} 8. O-O {[%emt 0:00:00]} Be6 {[%emt 0:00:00]} 9. f4 {[%emt 0:00:00]} exf4 {
[%emt 0:00:00]} 10. Nxf4 {[%emt 0:00:00]} Nc6 {[%emt 0:00:00]} 11. Nxe6 {
[%emt 0:00:00]} fxe6 {[%emt 0:00:00]} 12. Qf3 {[%emt 0:00:00]} Ne5 {[%emt 0:00:
00]} 13. Qh3 {[%emt 0:00:00]} Qd7 {[%emt 0:00:00]} 14. Be3 {[%emt 0:00:00]} O-O
{[%emt 0:00:00]} 15. Bd4 {[%emt 0:00:00]} Rae8 {[%emt 0:00:00]} 16. Rad1 {
[%emt 0:00:00]} Qc8 {[%emt 0:00:00]} 17. Kh1 {[%emt 0:00:00]} Bd8 {[%emt 0:00:
00]} 18. Nd5 {[%emt 0:00:00]} Qc6 {[%emt 0:00:00]} 19. Bxe5 {[%emt 0:00:00]}
dxe5 {[%emt 0:00:00]} 20. Nxf6+ {[%emt 0:02:46]} Rxf6 {[%emt 0:00:00]} 21. b3 {
[%emt 0:00:00]} b5 {[%emt 0:00:00]} 22. Qh5 {[%emt 0:00:00]} Rxf1+ {[%emt 0:00:
00]} 23. Rxf1 {[%emt 0:00:00]} Bf6 {[%emt 0:00:00]} 24. Qe2 {[%emt 0:00:00]}
Rf8 {[%emt 0:00:00]} 25. c4 {[%emt 0:00:00]} b4 {[%emt 0:00:00]} 26. c5 {
[%emt 0:00:00]} Bg5 {[%emt 0:00:00]} 27. Bxa6 {[%emt 0:00:00]} Rxf1+ {[%emt 0:
00:00]} 28. Qxf1 {[%emt 0:00:00]} Qxc5 {[%emt 0:00:00]} 29. Bc4 {[%emt 0:00:00]
} Qd6 {[%emt 0:00:00]} 30. g3 {[%emt 0:00:00]} Bf6 {[%emt 0:00:00]} 31. Qe2 {
[%emt 0:00:00]} g6 {[%emt 0:00:00]} 32. Kg2 {[%emt 0:00:00]} Kf7 {[%emt 0:00:
00]} 33. h4 {[%emt 0:00:00]} 1/2-1/2